Cogmind - Beta 14 @@@ ROGUE MODE // 2025.03.19 @ 17:45:05 Player: GiggleBox Result: Smashed by cave-in Performance ------------- Evolutions (0) 0 Regions Visited (4) 800 Robots Destroyed (40) 200 Value Destroyed (673) 673 Prototype IDs (27) 540 Alien Tech Used (0) 0 Bonus (313) 313 TOTAL SCORE: 2526 Bonus ------- Follower Combat Kills 32 Aligned with FarCom 300 Friendly Fire -19 Cogmind --------- Core Integrity 0/250 Matter 219/300 Energy 118/250 System Corruption 0% Temperature Cool (0) Movement Rolling (135) Ox3 Location -9/Mines Parts ------- > --- POWER (1) -------- Ion Engine > --- PROPULSION (2) --- Wheel Compact Wheel > --- UTILITY (2) ------ High-capacity Storage Unit High-capacity Storage Unit > --- WEAPON (2) ------- Assault Rifle Grenade Launcher > --- INVENTORY (20) --- Light Treads Light Treads Heat Sink Improved Heat Sink Medium Storage Unit Signal Interpreter Improved Terrain Scanner Seismic Detector Seismic Detector Tractor Beam Medium Laser Assault Rifle Assault Rifle Assault Rifle AWS/Gauss Mining Laser Peak State ------------ > --- POWER ------------ Ion Engine > --- PROPULSION ------- Wheel Compact Wheel > --- UTILITY ---------- High-capacity Storage Unit Improved Terrain Scanner > --- WEAPON ----------- AWS/Gauss > --- INVENTORY -------- Ion Engine Light Treads Light Treads Heat Sink Improved Heat Sink Medium Storage Unit High-capacity Storage Unit Signal Interpreter Seismic Detector Seismic Detector Light Armor Plating Tractor Beam Medium Laser Assault Rifle Assault Rifle Assault Rifle Assault Rifle Grenade Launcher Rocket Launcher Mining Laser [Rating: 25] Favorites ----------- Power Ion Engine Engine Ion Engine Propulsion Wheel Treads Light Treads Wheel Wheel Utility High-capacity Storage Unit Device Seismic Detector Storage High-capacity Storage Unit Protection Light Armor Plating Weapon Assault Rifle Energy Gun Medium Laser Ballistic Gun Assault Rifle Launcher Grenade Launcher Special Weapon Mining Laser Build | -11 -10 -10 -10 -9 ------- Run | Yrd Mat Min Exi Min Slots Evolved . | . . . . . Power . | . . . . . Propulsion . | . . . . . Utility . | . . . . . Weapon . | . . . . . Parts Attached 41 | 10 14 8 2 7 Power 3 | 1 1 . . 1 Engine 3 | 1 1 . . 1 Core . | . . . . . Reactor . | . . . . . Propulsion 8 | 5 1 2 . . Treads 3 | 2 . 1 . . Leg . | . . . . . Wheel 5 | 3 1 1 . . Hover . | . . . . . Flight . | . . . . . Utility 15 | 2 9 2 . 2 Device 9 | 1 7 1 . . Storage 4 | 1 2 . . 1 Processor . | . . . . . Hackware . | . . . . . Protection 2 | . . 1 . 1 Artifact . | . . . . . Weapon 15 | 2 3 4 2 4 Energy Gun 2 | 1 1 . . . Energy Cannon . | . . . . . Ballistic Gun 7 | 1 2 1 2 1 Ballistic Cannon . | . . . . . Launcher 5 | . . 3 . 2 Special Weapon 1 | . . . . 1 Impact Weapon . | . . . . . Slashing Weapon . | . . . . . Piercing Weapon . | . . . . . Special Melee Weapon . | . . . . . Unidentified Prototypes . | . . . . . Parts Lost 6 | . 1 2 . 3 Power 1 | . . . . 1 Propulsion 2 | . 1 1 . . Utility 1 | . . . . 1 Weapon 2 | . . 1 . 1 Highest Loss Streak 3 | . 1 1 . 3 To Critical Strikes 1 | . . 1 . . Average Slot Usage (%) 97 | . 100 97 93 95 Engine 13 | . 14 14 14 13 Treads 2 | . . 6 . . Wheel 25 | . 28 19 28 28 Device 10 | . 14 3 14 13 Storage 14 | . 14 14 14 14 Protection 3 | . . 10 . . Energy Gun 5 | . 14 . . . Ballistic Gun 16 | . 14 18 21 9 Launcher 4 | . . 10 . 11 Peak Build Rating 25 | 7 9 12 25 25 Average Rating 10 | 4 7 8 17 15 On Entrance 10 | . 7 8 12 25 Naked Turns . | . . . . . Heaviest Build 56 | 11 50 54 56 56 Greatest Support 40 | 40 26 26 26 26 Greatest Overweight (x) 3 | . 1 3 2 2 Average Overweight (x) 1 | . . 2 1 1 Largest Inventory Capacity 20 | 8 20 20 20 20 Average Capacity 16 | 7 12 20 20 20 Most Carried 20 | 6 17 19 20 20 Average Carried 14 | 3 9 16 19 19 Final Capacity 20 | 8 20 20 20 20 Final Carried 20 | 6 17 19 20 17 Class Distribution -------------------- 93% | Mutant 6% | Skirmisher Dominant Class ---------------- Mutant | -10/Materials Mutant | -10/Mines Mutant | -10/Exiles Skirmisher | -9/Mines Resources | -11 -10 -10 -10 -9 ----------- Run | Yrd Mat Min Exi Min Matter Collected 739 | 228 214 128 . 169 Remotely . | . . . . . Salvage Created 802 | 84 306 235 . 177 Parts 65 | 12 25 24 . 4 Haulers Intercepted 2 | . 2 . . . Recyclers Shooed 2 | 1 . 1 . . Parts Field Recycled . | . . . . . Retrieved Matter . | . . . . . Parts Self-Destructed . | . . . . . Prevented . | . . . . . Kills | -11 -10 -10 -10 -9 ------- Run | Yrd Mat Min Exi Min Combat Hostiles Destroyed 33 | . 10 12 . 11 Guns 11 | . 10 1 . . AOE 22 | . . 11 . 11 Classes Destroyed 10 | 1 4 2 . 3 Worker 2 | . . . . 2 Builder 2 | . . 2 . . Tunneler 5 | 4 . . . 1 Hauler 2 | . 2 . . . Recycler 1 | . . . . 1 Mechanic 1 | . . 1 . . Watcher 2 | . 2 . . . Swarmer 17 | . 9 5 . 3 Grunt 8 | . 1 7 . . Assembled 8 | . . . . 8 Best Kill Streak 8 | 4 3 6 . 8 Combat Bots Only 8 | . 3 4 . 8 Max Kills in Single Turn 5 | 1 2 3 . 5 Gunslinging 1 | . 1 . . . Exploded 5 | . . 2 . 5 Melee . | . . . . . Uniques/NPCs Destroyed . | . . . . . Combat | -11 -10 -10 -10 -9 -------- Run | Yrd Mat Min Exi Min Hostile Shots Fired 107 | . 43 22 . 42 Missed 36 | . 12 10 . 14 Damage Taken 1019 | . 259 174 . 586 Core 280 | . 71 10 . 199 Absorbed by Shields . | . . . . . Core Remaining (%) 100 | 100 . . . . Volleys Fired 72 | 7 40 17 . 8 Largest 2 | 2 2 2 . 2 Hottest 133 | 60 70 50 . 133 Shots Fired 125 | 14 80 19 . 12 Gun 103 | 14 80 6 . 3 Cannon . | . . . . . Launcher 21 | . . 13 . 8 Special 1 | . . . . 1 Kinetic 56 | 7 40 6 . 3 Thermal 48 | 7 40 . . 1 Explosive 21 | . . 13 . 8 Electromagnetic . | . . . . . Robot Hit Streak 6 | 3 6 4 . 1 Robot Miss Streak 2 | 2 2 1 . 2 Penetration Max . | . . . . . Secondary Targets 2 | . 2 . . . Max Gunslinging Chain 1 | . 1 . . . Autonomous 3 | . . . . 3 Shots Hit Robots 64 | 6 48 6 . 4 Core Hits 77 | 5 20 27 . 25 Critical Kills . | . . . . . Critical Parts Destroyed . | . . . . . Critical Strikes 1 | . 1 . . . Burn 1 | . 1 . . . Melee Attacks . | . . . . . Impact . | . . . . . Slashing . | . . . . . Piercing . | . . . . . Sneak Attacks . | . . . . . Combat Hostiles . | . . . . . Follow-up Attacks . | . . . . . Damage Inflicted 2736 | 73 540 1178 . 945 Guns 688 | 73 540 50 . 25 Cannons . | . . . . . Explosions 2048 | . . 1128 . 920 Melee . | . . . . . Ramming . | . . . . . Kinetic 326 | 31 220 50 . 25 Thermal 448 | 42 320 86 . . Explosive 1962 | . . 1042 . 920 Electromagnetic . | . . . . . Impact . | . . . . . Slashing . | . . . . . Piercing . | . . . . . Highest Corruption . | . . . . . Average Corruption . | . . . . . Corruption Purged . | . . . . . Corruption Blocked . | . . . . . Overload Shots . | . . . . . Overflow Damage 20 | . . 7 . 13 Projectiles . | . . . . . Explosions 20 | . . 7 . 13 Melee . | . . . . . Knockbacks . | . . . . . Impact . | . . . . . Kinetic . | . . . . . Secondary . | . . . . . Self-Inflicted Damage 188 | . . 36 . 152 Shots 6 | . . 2 . 4 Rammed . | . . . . . Targets Rammed . | . . . . . Kicked . | . . . . . Crushed . | . . . . . Highest Temperature 70 | 40 70 11 . 31 Average Temperature 21 | 18 22 6 . 17 Received Heat Transfer 132 | . 18 54 . 60 Siege Activations . | . . . . . Robots Corrupted . | . . . . . Combat Hostiles . | . . . . . Parts Fried . | . . . . . Impact Corruptions . | . . . . . Robots Melted . | . . . . . Combat Hostiles . | . . . . . Parts Melted 1 | . 1 . . . Heat Transferred 1140 | 100 940 100 . . Parts Sabotaged . | . . . . . Parts Stolen . | . . . . . Parts Stripped . | . . . . . Power Chain Reactions . | . . . . . Alert | -11 -10 -10 -10 -9 ------- Run | Yrd Mat Min Exi Min Peak Influence 371 | 20 277 371 . 124 Initial 15 | . 13 15 . . Average 173 | 6 130 262 . 77 Maximum Alert Level 1 | . 1 1 . . Low Security (%) 66 | 100 88 31 . 100 Level 1 33 | . 11 68 . . Level 2 . | . . . . . Level 3 . | . . . . . Level 4 . | . . . . . Level 5 . | . . . . . High Security . | . . . . . Max Security . | . . . . . Squads Dispatched 1 | . . 1 . . Investigation . | . . . . . Extermination . | . . . . . Reinforcement . | . . . . . Assault 1 | . . 1 . . Garrison . | . . . . . Intercept . | . . . . . Searches Triggered . | . . . . . Construction Impeded . | . . . . . Haulers Reinforced . | . . . . . Active Scanning Responses . | . . . . . Cargo Convoy Interrupts . | . . . . . Stealth | -11 -10 -10 -10 -9 --------- Run | Yrd Mat Min Exi Min Distress Signals 1 | . 1 . . . Communications Jammed . | . . . . . Distress Signals . | . . . . . Times Spotted 55 | . 20 14 . 21 Peak Tracking Total 17 | . 5 4 . 17 Tactical Retreats 2 | . 2 . . . Traps | -11 -10 -10 -10 -9 ------- Run | Yrd Mat Min Exi Min Traps Triggered . | . . . . . Indirectly . | . . . . . Trap Hack Attempts . | . . . . . Triggered . | . . . . . Disarmed . | . . . . . Reprogrammed . | . . . . . Reused . | . . . . . Traps Extracted . | . . . . . Installed . | . . . . . Triggered . | . . . . . Machines | -11 -10 -10 -10 -9 ---------- Run | Yrd Mat Min Exi Min Machines Disabled 9 | . . 9 . . Max in Single Turn 6 | . . 6 . . Machines Repaired . | . . . . . Machines Dismantled . | . . . . . Machines Sabotaged . | . . . . . Overloaded Fab Kills . | . . . . . Hacking | -11 -10 -10 -10 -9 --------- Run | Yrd Mat Min Exi Min Machines Accessed 12 | . 8 . 4 . Terminals 6 | . 6 . . . Fabricators . | . . . . . Repair Stations 1 | . 1 . . . Recycling Units 1 | . 1 . . . Scanalyzers . | . . . . . Garrison Access . | . . . . . Total Hacks 47 | . 31 . 16 . Successful 33 | . 17 . 16 . Failed 13 | . 13 . . . Catastrophic 1 | . 1 . . . Database Lockouts 1 | . 1 . . . Manual 18 | . 17 . 1 . Terminals 22 | . 22 . . . Fabricators . | . . . . . Repair Stations 3 | . 3 . . . Recycling Units 6 | . 6 . . . Scanalyzers . | . . . . . Garrison Access . | . . . . . Terminal Hacks 22 | . 6 . 16 . Record 15 | . . . 15 . Robot Analysis 1 | . 1 . . . Prototype ID Bank 2 | . 2 . . . Locate Traps 1 | . 1 . . . Dispatch Records 1 | . 1 . . . Hauler Manifests 1 | . 1 . . . Derelict Proto ID Bank 1 | . . . 1 . Fabricator Hacks . | . . . . . Repair Station Hacks 1 | . 1 . . . Scan Component 1 | . 1 . . . Recycling Unit Hacks 6 | . 6 . . . Process 2 | . 2 . . . Report Inventory 1 | . 1 . . . Retrieve Matter 3 | . 3 . . . Scanalyzer . | . . . . . Garrison Access Hacks . | . . . . . Unauthorized Hacks 4 | . 4 . . . Terminals 4 | . 4 . . . Assimilate 2 | . 2 . . . Botnet 2 | . 2 . . . Fabricators . | . . . . . Repair Stations . | . . . . . Recycling Units . | . . . . . Scanalyzers . | . . . . . Garrison Access . | . . . . . Data Cores Recovered . | . . . . . Used . | . . . . . Hacking Detections 8 | . 8 . . . Full Trace Events 1 | . 1 . . . Feedback Events . | . . . . . Feedback Blocked . | . . . . . Robot Schematics Acquired . | . . . . . Robots Built . | . . . . . Authchips . | . . . . . Time . | . . . . . Total Robot Build Rating . | . . . . . Part Schematics Acquired . | . . . . . Parts Built . | . . . . . Authchips . | . . . . . Time . | . . . . . Total Part Build Rating . | . . . . . Parts Repaired . | . . . . . Time . | . . . . . Parts Recycled . | . . . . . Recycled Matter 132 | . 132 . . . Retrieved Matter 172 | . 172 . . . Retrieved Components . | . . . . . Parts Scanalyzed . | . . . . . Part Schematics Acquired . | . . . . . Parts Damaged . | . . . . . Bothacking | -11 -10 -10 -10 -9 ------------ Run | Yrd Mat Min Exi Min Used RIF Installer . | . . . . . Robots Hacked . | . . . . . Non-combat . | . . . . . Combat . | . . . . . Robot Hacks Applied . | . . . . . Relay Couplers Released . | . . . . . Fabnet Peak Effective % . | . . . . . Robots Rewired . | . . . . . Allies Hacked . | . . . . . Hacks Repelled . | . . . . . Allies | -11 -10 -10 -10 -9 -------- Run | Yrd Mat Min Exi Min Total Allies 3 | . 1 2 . . Largest Group 3 | . 1 3 3 2 Highest-Rated Group 69 | . 10 69 69 38 Highest-Rated Ally 31 | . 10 31 31 28 Total Orders 1 | . 1 . . . FOLLOW 1 | . 1 . . . Ally Attacks 8 | . . 8 . . Total Damage 122 | . . 122 . . Kills 2 | . . 2 . . Allies Corrupted . | . . . . . Allies Melted . | . . . . . Intel | -11 -10 -10 -10 -9 ------- Run | Yrd Mat Min Exi Min Robot Analysis Total 1 | . 1 . . . Derelict Logs Recovered 2 | . . 2 . . Drone Launches . | . . . . . Drone Recoveries . | . . . . . Exploration | -11 -10 -10 -10 -9 ------------- Run | Yrd Mat Min Exi Min Turns Passed 2469 | 117 875 844 444 189 Spaces Moved 1846 | 75 711 567 359 134 Core 3 | 3 . . . . Treads 12 | 12 . . . . Legs . | . . . . . Wheels 1831 | 60 711 567 359 134 Hover . | . . . . . Flight . | . . . . . Fastest Speed 50 | 50 80 105 105 105 Average Speed 108 | 98 89 132 110 108 Slowest Speed 160 | 160 105 145 120 120 Overloaded Moves . | . . . . . Propulsion Burnouts . | . . . . . Robots Hopped . | . . . . . Cave-ins Triggered 1 | . . . . 1 Exploration Rate (%) 56 | 4 94 91 62 31 Regions Visited 4 Branch Regions 3 Pre-discovered Areas 1 | . . 1 . . Known Exits Taken . | . . . . . Unknown Exits Taken 4 | 1 1 1 1 . Scrap Searched 2 | . . 1 . 1 Spaces Dug . | . . . . . Terrain Destroyed 161 | . . 91 . 70 Melee . | . . . . . Projectile 3 | . . . . 3 AOE 158 | . . 91 . 67 Terrain Rammed . | . . . . . Walls Destroyed . | . . . . . Machines Disabled . | . . . . . Actions | -11 -10 -10 -10 -9 --------- Run | Yrd Mat Min Exi Min Total 2187 | 102 874 638 407 166 Wait 193 | 2 89 43 44 15 Move 1842 | 74 710 566 358 134 Hop . | . . . . . Pick Up 25 | 7 13 4 . 1 Fast Attach 7 | 6 . . 1 . Attach 11 | 3 1 2 . 5 Detach 4 | 2 . . 2 . Swap 23 | 1 13 6 1 2 Drop 10 | . 8 . 1 1 Fire 72 | 7 40 17 . 8 Melee . | . . . . . Ram . | . . . . . Kick . | . . . . . Crush . | . . . . . Escape Stasis . | . . . . . Rewire . | . . . . . Trap . | . . . . . Miscellaneous . | . . . . . Route ------- -11/Scrapyard -10/Materials (discovered 3 exits: [*Mat x2] / [*Min]) -10/Mines (discovered 4 exits: [*Mat x2] / *Exi / [*Sub]) -10/Exiles (discovered 2 exits: [*Min x2]) -9/Mines (discovered 1 exit: [*Mat]) History --------- Turn | Location | Event 5 | -11/Scrapyard | Discovered new exit (range 16) 118 | -11/Scrapyard | Entered Materials 307 | -10/Materials | Build established: Mutant 334 | -10/Materials | Discovered new exit (range 14) 479 | -10/Materials | Central database locked down 549 | -10/Materials | Discovered new exit (range 7) 757 | -10/Materials | Discovered new exit (range 16) 993 | -10/Materials | Entered Mines 993 | -10/Mines | Accompanied by 1 ally 994 | -10/Mines | Met a Derelict testing a Signal Generator 1195 | -10/Mines | Discovered new exit (range 7) 1268 | -10/Mines | Discovered new exit (range 13) 1281 | -10/Mines | Learned Materials trap positions 1643 | -10/Mines | Discovered new exit (range 5) 1648 | -10/Mines | Received a Rocket Launcher from a helpful Derelict 1675 | -10/Mines | Received a Mining Laser from a helpful Derelict 1757 | -10/Mines | Learned location of Storage (-7) 1801 | -10/Mines | Deemed a non-threat by the Exiles lab entrance 1802 | -10/Mines | Discovered new exit (range 5) 1837 | -10/Mines | Entered Exiles 1837 | -10/Exiles | Accompanied by 3 allies 1853 | -10/Exiles | Discovered new exit (range 15) 1872 | -10/Exiles | Met 8R-AWN 1890 | -10/Exiles | Met EX-HEX 1920 | -10/Exiles | Met EX-BIN 2046 | -10/Exiles | Aligned with FarCom system 2047 | -10/Exiles | Given EX-Vault access code 2072 | -10/Exiles | Opened EX-Vault 2083 | -10/Exiles | Found AWS/Gauss 2110 | -10/Exiles | Warned to stay clear of 0b10 Research branches 2123 | -10/Exiles | Exiles lab attacked by MAIN.C 2230 | -10/Exiles | Discovered new exit (range 10) 2281 | -10/Exiles | Left Exiles lab with AWS/Gauss 2281 | -10/Exiles | Entered Mines 2281 | -9/Mines | Accompanied by 2 allies 2342 | -9/Mines | Discovered new exit (range 13) 2383 | -9/Mines | Core integrity fell below 50% 2422 | -9/Mines | YI-UF0 nonchalantly dropped a Grenade Launcher on the ground 2447 | -9/Mines | Assembled infested the area 2469 | -9/Mines | Core integrity fell below 20% 2471 | -9/Mines | Crushed by falling debris 2471 | -9/Mines | Smashed by cave-in Last Messages --------------- squad. 02459_ Ion Engine destroyed. 02461_ as-04649 destroyed. 02462_ Rocket Launcher destroyed. 02464_ Destroyed Asb. F-torch. 02464_ as-13406 destroyed. 02464_ as-07052 destroyed. 02464_ as-31026 destroyed. 02464_ as-74413 destroyed. 02464_ as-42272 destroyed. 02464_ Knocked back. 02466_ as-39170 destroyed. 02466_ Critical hit (Destroy). 02468_ Lgt. Armor Plating destroyed. 02468_ Destroyed Lgt. Armor Plating. 02468_ as-13545 destroyed. 02468_ as-86846 destroyed. 02471_ The unstable cave ceiling collapses. 02471_ Crushed by falling debris. [Achievement: Unlikely Earthworm] Map ----- +----------------------------------------------------+ | ????????????????????????###??????#????# #### | | ????????????????????????????#####???#?# #?? | | ???????????????????#???????? ? #?????# ### #?? | | ?????????????????????##???????# #?????# #?## ###? | | ?????????????????#??## ####### ####??# #??####??? | | ????????????????????# ! ##### #?????#??? | | ???????????????????## [=! ] #???#????? | | ???????????????????## ### ## ######????????? | | ???????????????????# ?????# ## #?????????????? | | ???????????????????? ???#?# ### #???????????? | | ?????????????????????#????# #?### #???????????? | | ??????????????????????????# #???#### #???????????? | | ????????????????????? ????# #??????? #???????????? | | ??????????????????????????# #????????#???????????? | | ??????????????????????????# #????????????????????? | | ???????????#??????????????# #????????????????????? | | ????????????????????? ????# #????????????????????? | | ??????????????????????????# #???????#????????????? | | ??????????????????????????# #????? ??????????????? | | ???????????????#???????#### #????????????????????? | | ???????????#???# ?????# o #????????????????????? | | ?????????? ##### #?### ###???????????????#????? | | ????????? a # # ##?????????????????????? | | ????????? %a #?????????????????????? | | ?????????????# a%% a% #?#???????????????????? | | ????????????# % a@ #?????????????????????? | | ?????????????# a #???????#?????????????? | | ?????????????# ## ####?????????????????????? | | ?????????????# ???####?????????????????????????? | | ???????????? ???????#??????????????????????????? | | ??????????? ? ??????????????????????????????????? | | ???????????????????????????????#?????????????????? | | ?????????????????????????????????????????????????? | | ???????????????????????????#?????????????????????? | | ?????????????????????????????????????????????????? | | ?????????????????????????????????????????????????? | | ?????????????????????????????????????????????????? | | ?????????????????#???????????????????????????????? | | ?????????????????????????????????????????????????? | | ?????????????????????????????????????????????????? | | ?????????????????????????????????????????????????? | | ?????????????????????????????????????????????????? | | ?????????????????????????????????????????????????? | | ?????????????????????????????????????????????????? | | | | | | | | | | | | | +----------------------------------------------------+ Best States ------------- Heat Dissipation 25 Energy Generation 10 Energy Capacity 250 Matter Stores 300 Matter Capacity 300 Sight Range 16 Terrain Scan Range 16 Terrain Scan Density 10 Armor Coverage 150 Evasion (%) 44 Recoil Reduction 2 Item Schematics ----------------- None Robot Schematics ------------------ None Fabricated ------------ Nothing Alien Tech Used ----------------- None Achievements -------------- Unlikely Earthworm Challenges ------------ None Game ------ Seed SpacefoldNodeKit Manual? 0 Play Time 00:39:16 Cumulative 23.5 hours Start 2025.03.19 @ 17:05:20 End 2025.03.19 @ 17:45:05 Sessions 1 Manual Loads 0 Difficulty Rogue Special Mode None Game No. 33 Rogue 33 Adventurer 0 Explorer 0 Win Type - Total 0 Types 0/0/0/0/0/0/0/0/0 Lore% 7 Gallery% 25 Achievement% 21 Wizard Run 0 Options --------- Layout 0 ASCII 0 Keyboard 1 Movement Numpad Keybinds 0 Fullscreen 1 Font 24/Smallcaps Map View 76x50 Zoom Use 0% Tactical HUD 1 Map Filters NONE Filters NONE Steam 1 RUN: 26bb168b-4f3b-477b-af51-a4f32e7da100